bitfinex-derivatives/quotes_BTCF0:USTF0_20250108
["timestamp","ask_amount","ask_price","bid_price","bid_amount"]
[1736324855921,0.11222717,95877.0,95871.0,0.0804]
[1736324857334,0.11222717,95876.0,95871.0,0.0804]
[1736324858132,0.11222717,95875.0,95871.0,0.0804]
[1736324859029,0.11222717,95874.0,95871.0,0.0804]
[1736324859831,0.052168,95878.0,95871.0,0.0804]
[1736324860418,0.052169,95875.0,95868.0,0.37165437]
[1736324860623,0.05217,95874.0,95868.0,0.37165437]
[1736324861824,0.05217,95873.0,95868.0,0.37165437]
[1736324862135,0.46557705,95881.0,95868.0,0.01085437]
[1736324862136,0.052172,95870.0,95868.0,0.01085437]
[1736324862324,0.0754,95869.0,95857.0,0.076]
[1736324862525,0.052173,95868.0,95857.0,0.076]
[1736324862825,0.0754,95869.0,95857.0,0.076]
[1736324862826,0.052178,95859.0,95857.0,0.076]
[1736324863230,0.052178,95859.0,95856.0,0.3608]
[1736324863422,0.11222717,95858.0,95856.0,0.3712434]
[1736324864334,0.11222717,95857.0,95856.0,0.3712434]
[1736324867832,0.11222717,95868.0,95856.0,0.3712434]
[1736324868037,0.11222717,95868.0,95856.0,0.4234224]
[1736324868435,0.11222717,95868.0,95859.0,0.052177]
[1736324868938,0.36140001,95872.0,95859.0,0.052177]
[1736324869136,0.3608,95872.0,95856.0,0.3712434]
[1736324869346,0.3608,95872.0,95862.0,0.052176]
[1736324872241,0.3608,95872.0,95863.0,0.052175]
[1736324873541,0.3608,95872.0,95863.0,0.053175]
[1736324876344,0.3608,95872.0,95865.0,0.052174]
[1736324876541,0.3608,95872.0,95866.0,0.1589]
[1736324877042,0.11222717,95871.0,95866.0,0.1589]
[1736324878141,0.11222717,95870.0,95866.0,0.1589]
[1736324878836,0.11222717,95869.0,95866.0,0.1589]
[1736324879046,0.11222717,95869.0,95868.0,0.052173]
[1736324879844,0.1,95880.0,95866.0,0.1589]
[1736324880037,0.1,95880.0,95870.0,0.06858444]
[1736324880239,0.16858444,95880.0,95869.0,0.052172]
[1736324882438,0.052168,95877.0,95866.0,0.1599]
[1736324882936,0.3608,95872.0,95869.0,0.001]
[1736324883534,0.11222717,95876.0,95869.0,0.001]
[1736324883943,0.052171,95872.0,95869.0,0.001]
[1736324884144,0.052171,95872.0,95866.0,0.01073711]
[1736324884145,0.11222717,95871.0,95866.0,0.01173711]
[1736324884340,0.11222717,95871.0,95866.0,0.001]
[1736324884947,0.11222717,95870.0,95866.0,0.001]
[1736324885540,0.11222717,95869.0,95866.0,0.001]
[1736324885947,0.11222717,95869.0,95867.0,0.3608]
[1736324886137,0.11222717,95869.0,95868.0,0.0748]
[1736324886341,0.11222717,95869.0,95868.0,0.2351]
[1736324886551,0.46136001,95880.0,95871.0,0.052171]
[1736324886848,0.1,95880.0,95877.0,0.3608]
[1736324887039,0.1,95880.0,95878.0,0.052167]
[1736324888651,0.11224117,95879.0,95878.0,0.052167]
[1736324889650,0.11224117,95879.0,95878.0,0.06268288]
[1736324891651,0.1,95880.0,95878.0,0.06268288]
[1736324893454,0.1,95880.0,95878.0,0.01051588]
[1736324893654,0.1,95880.0,95877.0,0.3608]
[1736324894246,0.1,95880.0,95877.0,0.0106474]
[1736324894442,0.052169,95875.0,95867.0,0.3608]
[1736324894654,0.05217,95874.0,95867.0,0.3608]
[1736324894855,0.3608,95871.0,95857.0,0.72632]
[1736324895050,0.052176,95862.0,95857.0,0.3608]
[1736324895253,0.1618,95861.0,95857.0,0.3608]
[1736324895455,0.052169,95875.0,95858.0,0.052178]
[1736324895654,0.0794,95874.0,95858.0,0.052178]
[1736324897255,0.0794,95874.0,95860.0,0.10449579]
[1736324897446,0.0794,95874.0,95870.0,0.3608]
[1736324898253,0.11224117,95873.0,95870.0,0.3608]
[1736324899062,0.11224117,95878.0,95870.0,0.3608]
[1736324899862,0.11224117,95878.0,95871.0,0.0779]
[1736324900055,0.11224117,95878.0,95873.0,0.05217]
[1736324900262,0.11224117,95878.0,95876.0,0.052168]
[1736324901059,0.1,95880.0,95876.0,0.052168]
[1736324901261,0.1,95880.0,95878.0,0.3608]
[1736324901462,0.1,95880.0,95878.0,0.412967]
[1736324904563,0.1,95880.0,95879.0,0.3608]
[1736324906660,0.21224117,95880.0,95879.0,0.3608]
[1736324908162,0.21224117,95880.0,95871.0,0.3608]
[1736324909060,0.11224117,95879.0,95871.0,0.3608]
[1736324910469,0.11224117,95878.0,95871.0,0.3608]
[1736324911570,0.11224117,95877.0,95871.0,0.3608]
[1736324912471,0.11224117,95876.0,95871.0,0.3608]
[1736324913558,0.11224117,95879.0,95871.0,0.3608]
[1736324915660,0.1,95880.0,95871.0,0.3608]
[1736324915661,0.11224117,95878.0,95871.0,0.3608]
[1736324916265,0.1,95880.0,95871.0,0.3608]
[1736324917978,0.1,95880.0,95871.0,0.412971]
[1736324918769,0.11224117,95879.0,95871.0,0.412971]
[1736324919578,0.11224117,95879.0,95871.0,0.3608]
[1736324919784,0.11224117,95878.0,95872.0,0.05217]
[1736324920170,0.11224117,95878.0,95871.0,0.3608]
[1736324920369,0.11224117,95878.0,95873.0,0.05217]
[1736324920573,0.11224117,95877.0,95873.0,0.05217]
[1736324921481,0.11224117,95876.0,95873.0,0.05217]
[1736324922373,0.11224117,95875.0,95873.0,0.05217]
[1736324923380,0.11224117,95874.0,95873.0,0.05217]
[1736324923980,0.11224117,95874.0,95871.0,0.3608]
[1736324924372,0.11224117,95879.0,95871.0,0.3608]
[1736324925173,0.11224117,95878.0,95871.0,0.3608]
[1736324926178,0.1,95880.0,95871.0,0.3608]
[1736324926482,0.1,95880.0,95871.0,0.412971]
[1736324926687,0.1,95880.0,95871.0,0.3608]
[1736324926874,0.11224117,95879.0,95872.0,0.05217]
[1736324927785,0.11224117,95878.0,95872.0,0.05217]
[1736324928482,0.1,95880.0,95872.0,0.05217]
[1736324928483,0.11224117,95877.0,95872.0,0.05217]
[1736324929285,0.11224117,95877.0,95870.0,0.01077228]
[1736324929579,0.11224117,95876.0,95868.0,0.052173]
[1736324930175,0.11224117,95876.0,95873.0,0.3608]
[1736324930479,0.11224117,95875.0,95873.0,0.3608]
[1736324931585,0.11224117,95874.0,95873.0,0.41297]
[1736324938577,0.11224117,95879.0,95874.0,0.052169]
[1736324938999,0.11224117,95879.0,95874.0,0.128469]
[1736324939689,0.11224117,95878.0,95874.0,0.128469]
[1736324940484,0.11224117,95878.0,95874.0,0.0763]
[1736324941189,0.1,95880.0,95873.0,0.3608]
[1736324941392,0.1,95880.0,95873.0,0.37164782]
[1736324942189,0.11224117,95879.0,95873.0,0.37164782]
[1736324942986,0.11224117,95878.0,95873.0,0.37164782]
[1736324943886,0.1,95880.0,95873.0,0.37164782]
[1736324943887,0.11224117,95877.0,95873.0,0.37164782]
[1736324944891,0.11224117,95876.0,95873.0,0.37164782]
[1736324945892,0.11224117,95876.0,95874.0,0.052169]
[1736324946095,0.1,95880.0,95873.0,0.37164782]
[1736324946288,0.1,95880.0,95876.0,0.052168]
[1736324946598,0.1,95880.0,95877.0,0.0802]
[1736324947199,0.1,95880.0,95878.0,0.0799]
[1736324951997,0.1,95880.0,95878.0,0.09035964]
[1736324952594,0.1,95880.0,95878.0,0.14252664]
[1736324953797,0.1,95880.0,95878.0,0.09035964]
[1736324956115,0.1,95880.0,95878.0,0.01045964]
[1736324956405,0.1,95880.0,95874.0,0.052169]
[1736324957004,0.1,95880.0,95873.0,0.3608]
[1736324957208,0.1,95880.0,95873.0,0.3711204]
[1736324958207,0.1,95880.0,95878.0,0.052167]
[1736324959202,0.11224117,95891.0,95889.0,0.052161]
[1736324959412,0.96136001,95900.0,95890.0,0.412961]
[1736324959603,0.9608,95900.0,95891.0,0.079]
[1736324959807,0.6,95900.0,95891.0,0.079]
[1736324960410,0.11222097,95899.0,95891.0,0.079]
[1736324960811,0.11222097,95899.0,95894.0,0.052159]
[1736324961200,0.11222097,95898.0,95894.0,0.052159]
[1736324962209,0.11222097,95897.0,95891.0,0.079]
[1736324962405,0.11222097,95897.0,95895.0,0.052158]
[1736324963004,0.60056001,95900.0,95891.0,0.079]
[1736324963198,0.6,95900.0,95897.0,0.052157]
[1736324964706,0.6,95900.0,95891.0,0.08943781]
[1736324964906,0.11222097,95899.0,95891.0,0.08943781]
[1736324965909,0.11222097,95899.0,95891.0,0.01043781]
[1736324966113,0.052158,95896.0,95890.0,0.3608]
[1736324966300,0.1497,95895.0,95890.0,0.3608]
[1736324967008,0.26192097,95895.0,95890.0,0.3608]
[1736324967206,0.26192097,95895.0,95890.0,0.37156802]
[1736324967605,0.62272097,95895.0,95890.0,0.01076802]
[1736324967814,0.62272097,95895.0,95883.0,0.052165]
[1736324968018,0.11222097,95894.0,95883.0,0.052165]
[1736324969110,0.11222097,95894.0,95887.0,0.3608]
[1736324969315,0.11222097,95893.0,95887.0,0.3608]
[1736324970023,0.11222097,95892.0,95887.0,0.3608]
[1736324971011,0.11222097,95894.0,95887.0,0.3608]
[1736324971821,0.11222097,95893.0,95887.0,0.3608]
[1736324972721,0.11222097,95892.0,95887.0,0.3608]
[1736324973921,0.11222097,95891.0,95887.0,0.3608]
[1736324974621,0.51106001,95895.0,95887.0,0.3608]
[1736324974622,0.11222097,95890.0,95887.0,0.3608]
[1736324974827,0.11222097,95890.0,95883.0,0.01035498]
[1736324975123,0.11222097,95890.0,95877.0,0.412968]
[1736324975426,0.11222097,95890.0,95878.0,0.052167]
[1736324975626,0.11222097,95889.0,95878.0,0.052167]
[1736324975928,0.11222097,95889.0,95879.0,0.052167]
[1736324976728,0.11222097,95888.0,95879.0,0.052167]
[1736324976924,0.11222097,95888.0,95880.0,0.052166]
[1736324977521,0.11222097,95887.0,95880.0,0.052166]
[1736324978030,0.11222097,95886.0,95880.0,0.052166]
[1736324978833,0.11222097,95885.0,95880.0,0.052166]
[1736324980129,0.11222097,95884.0,95880.0,0.052166]
[1736324981033,0.11222097,95883.0,95880.0,0.052166]
[1736324981933,0.11222097,95882.0,95880.0,0.052166]
[1736324982535,0.11222097,95881.0,95880.0,0.052166]
[1736324983239,0.11222097,95881.0,95880.0,0.412966]
[1736324987337,0.60056001,95900.0,95880.0,0.3608]
[1736324987526,0.60056001,95900.0,95899.0,0.7216]
[1736324987527,0.47826451,95900.0,95899.0,0.7216]
[1736324987834,0.47826451,95900.0,95899.0,0.3608]
[1736324990537,0.47826451,95900.0,95899.0,0.37122506]
[1736324990737,0.47826451,95900.0,95899.0,0.01042506]
[1736324990942,0.47826451,95900.0,95899.0,0.3608]
[1736324991243,0.47826451,95900.0,95898.0,0.412956]
[1736324991831,0.47826451,95900.0,95898.0,0.42335158]
[1736324993441,0.47826451,95900.0,95898.0,0.37119558]
[1736324994739,0.47826451,95900.0,95898.0,0.01039558]
[1736324994942,0.47826451,95900.0,95891.0,0.05216]
[1736324995643,0.05216,95893.0,95891.0,0.01062303]
[1736324995835,0.1504,95892.0,95885.0,0.3608]
[1736324996036,0.2275,95892.0,95880.0,0.00208594]
[1736324996238,0.2275,95892.0,95880.0,0.10658173]
[1736324996441,0.2275,95892.0,95880.0,0.11699837]
[1736324999250,0.2275,95892.0,95880.0,0.01250258]
[1736324999537,0.11221343,95891.0,95880.0,0.01250258]
[1736325000335,0.10449579,95890.0,95880.0,0.01250258]
[1736325000536,0.052164,95884.0,95880.0,0.01250258]
[1736325000740,0.052164,95884.0,95858.0,0.58967655]
[1736325000741,0.052168,95878.0,95858.0,0.58967655]
[1736325000941,0.3608,95876.0,95860.0,0.052177]
[1736325001147,0.0715,95875.0,95860.0,0.052177]
[1736325001345,0.0715,95875.0,95858.0,0.59083655]
[1736325001648,0.3608,95867.0,95858.0,0.58967655]
[1736325001838,0.3608,95867.0,95850.0,0.3608]
[1736325002042,0.3608,95867.0,95840.0,0.82944]
[1736325002043,0.3608,95859.0,95841.0,0.0724]
[1736325002344,0.052179,95858.0,95849.0,0.01073296]
[1736325002645,0.3608,95859.0,95841.0,0.0724]
[1736325002946,0.052181,95854.0,95841.0,0.0724]
[1736325003142,0.1543,95853.0,95841.0,0.0724]
[1736325003349,0.1543,95853.0,95848.0,0.01034539]
[1736325006834,0.0787,95853.0,95848.0,0.01034539]
[1736325007247,0.0726,95866.0,95853.0,0.052181]
[1736325007447,0.0746,95865.0,95853.0,0.052181]
[1736325007949,0.0746,95865.0,95858.0,0.3608]
[1736325008150,0.0746,95865.0,95860.0,0.052177]
[1736325008353,0.0746,95865.0,95859.0,0.0721]
[1736325008545,0.0746,95865.0,95862.0,0.052176]
[1736325009449,0.0746,95865.0,95863.0,0.052175]
[1736325010055,0.0726,95879.0,95863.0,0.052175]
[1736325010350,0.0733,95878.0,95863.0,0.052175]
[1736325010848,0.0733,95878.0,95860.0,0.10449579]
[1736325011055,0.0733,95878.0,95866.0,0.052174]
[1736325012854,0.0733,95878.0,95861.0,0.0725]
[1736325013956,0.0733,95878.0,95869.0,0.052172]
[1736325015666,0.00064,95880.0,95869.0,0.3608]
[1736325015851,0.11221343,95890.0,95879.0,0.3608]
[1736325016056,0.11221343,95890.0,95889.0,0.3608]
[1736325016644,0.077,95896.0,95889.0,0.3608]
[1736325017151,0.077,95896.0,95887.0,0.052162]
[1736325017459,0.129158,95896.0,95880.0,0.125366]
[1736325017651,0.052158,95895.0,95880.0,0.125366]
[1736325017952,0.130658,95895.0,95880.0,0.125366]
[1736325019154,0.130658,95895.0,95880.0,0.13614656]
[1736325019955,0.130658,95895.0,95880.0,0.24064235]
[1736325020144,0.130658,95895.0,95887.0,0.3608]
[1736325024561,0.052159,95894.0,95887.0,0.3608]
[1736325025859,0.0785,95895.0,95887.0,0.3608]
[1736325028368,0.05216,95893.0,95887.0,0.3608]
[1736325028665,0.3608,95891.0,95880.0,0.08398056]
[1736325028861,0.10449579,95890.0,95880.0,0.08398056]
[1736325029065,0.052164,95884.0,95880.0,0.08398056]
[1736325029255,0.10449579,95890.0,95880.0,0.08398056]
[1736325029256,0.052165,95883.0,95880.0,0.08398056]
[1736325030767,0.11221343,95882.0,95880.0,0.08398056]
[1736325031864,0.052165,95883.0,95880.0,0.08398056]
[1736325032758,0.052165,95883.0,95880.0,0.01078056]
[1736325032955,0.052165,95883.0,95873.0,0.0724]
[1736325033359,0.052161,95890.0,95875.0,0.412969]
[1736325034071,0.052173,95869.0,95861.0,0.00108]
[1736325034263,0.052173,95868.0,95856.0,0.3608]
[1736325034462,0.052173,95868.0,95856.0,0.37110329]
[1736325034863,0.052176,95863.0,95856.0,0.37110329]
[1736325035161,0.052177,95861.0,95856.0,0.37110329]
[1736325035366,0.0713,95870.0,95856.0,0.37110329]
[1736325035670,0.052178,95859.0,95856.0,0.37110329]
[1736325037869,0.11221343,95868.0,95856.0,0.37110329]
[1736325038066,0.18461343,95881.0,95867.0,0.3608]
[1736325038261,0.052171,95872.0,95867.0,0.3608]
[1736325038870,0.18069579,95880.0,95867.0,0.3608]
[1736325039270,0.28519158,95880.0,95856.0,0.37110329]
[1736325039571,0.052176,95862.0,95856.0,0.37110329]
[1736325042070,0.052179,95857.0,95856.0,0.37110329]
[1736325043876,0.0719,95869.0,95856.0,0.37110329]
[1736325044178,0.052172,95871.0,95856.0,0.37110329]
[1736325044863,0.052172,95871.0,95865.0,0.3608]
[1736325046277,0.36436923,95880.0,95858.0,0.052178]
[1736325046278,0.052172,95869.0,95858.0,0.052178]
[1736325047775,0.052176,95862.0,95856.0,0.37110329]
[1736325048073,0.052177,95861.0,95856.0,0.37110329]
[1736325048279,0.123677,95861.0,95856.0,0.37110329]
[1736325048479,0.123677,95861.0,95858.0,0.001]
[1736325048679,0.0715,95861.0,95858.0,0.001]
[1736325049278,0.0715,95861.0,95856.0,0.37110329]
[1736325049671,0.11221343,95860.0,95856.0,0.37110329]
[1736325050173,0.11221343,95860.0,95854.0,0.3608]
[1736325050772,0.0732,95875.0,95854.0,0.3608]
[1736325050773,0.11221343,95869.0,95854.0,0.3608]
[1736325050972,0.11221343,95869.0,95865.0,0.3608]
[1736325051171,0.11221343,95869.0,95866.0,0.0716]
[1736325051776,0.11221343,95868.0,95866.0,0.1418]
[1736325052565,0.10449579,95880.0,95866.0,0.1418]
[1736325052566,0.11221343,95879.0,95866.0,0.1418]
[1736325052865,0.11221343,95879.0,95866.0,0.15211024]
[1736325053066,0.11221343,95879.0,95873.0,0.3608]
[1736325053270,0.11221343,95879.0,95874.0,0.075]
[1736325053467,0.052167,95880.0,95874.0,0.075]
[1736325053875,0.052162,95888.0,95874.0,0.075]
[1736325054873,0.412964,95884.0,95874.0,0.075]
[1736325055477,0.052166,95882.0,95874.0,0.075]
[1736325055672,0.052167,95879.0,95874.0,0.075]
[1736325055884,0.3608,95876.0,95866.0,0.01031024]
[1736325056174,0.3608,95876.0,95865.0,0.3608]
[1736325056175,0.052171,95873.0,95865.0,0.3608]
[1736325056373,0.3608,95867.0,95855.0,0.12518]
[1736325057271,0.3608,95867.0,95855.0,0.13588623]
[1736325057669,0.11221343,95866.0,95855.0,0.13588623]
[1736325058068,0.11221343,95866.0,95865.0,0.3608]
[1736325058569,0.11221343,95871.0,95865.0,0.3608]
[1736325059484,0.11221343,95870.0,95865.0,0.3608]
[1736325060187,0.11221343,95870.0,95866.0,0.0711]
[1736325060375,0.11221343,95879.0,95867.0,0.052173]
[1736325060575,0.11221343,95879.0,95873.0,0.3608]
[1736325061278,0.10449579,95880.0,95873.0,0.3608]
[1736325065088,0.11221343,95879.0,95873.0,0.3608]
[1736325066293,0.11221343,95878.0,95873.0,0.3608]
[1736325067086,0.11221343,95877.0,95873.0,0.3608]
[1736325067888,0.11221343,95876.0,95873.0,0.3608]
[1736325068693,0.11221343,95875.0,95873.0,0.3608]
[1736325069281,0.11221343,95875.0,95874.0,0.0766]
[1736325069485,0.11221343,95875.0,95874.0,0.12877]
[1736325069686,0.0752,95885.0,95876.0,0.052168]
[1736325070086,0.052157,95897.0,95884.0,0.3608]
[1736325070379,0.0746,95898.0,95884.0,0.3608]
[1736325070583,0.052159,95894.0,95884.0,0.3608]
[1736325071889,0.052159,95893.0,95884.0,0.3608]
[1736325072188,0.16438993,95893.0,95884.0,0.3608]
[1736325073087,0.052159,95893.0,95884.0,0.3608]
[1736325073295,0.052159,95893.0,95884.0,0.37134456]
[1736325073998,0.11223093,95892.0,95884.0,0.37134456]
[1736325075997,0.052159,95893.0,95884.0,0.37134456]
[1736325077592,0.052159,95893.0,95885.0,0.052164]
[1736325079098,0.11223093,95892.0,95885.0,0.052164]
[1736325079798,0.11223093,95891.0,95884.0,0.37134456]
[1736325080299,0.11223093,95891.0,95884.0,0.01054456]
[1736325080487,0.11223093,95890.0,95880.0,0.052166]
[1736325081601,0.11223093,95889.0,95880.0,0.052166]
[1736325082803,0.11223093,95888.0,95880.0,0.052166]
[1736325083103,0.11223093,95888.0,95881.0,0.3608]
[1736325084003,0.11223093,95887.0,95881.0,0.3608]
[1736325085006,0.11223093,95886.0,95881.0,0.3608]
[1736325086306,0.11223093,95885.0,95881.0,0.3608]
[1736325087306,0.05216,95892.0,95881.0,0.3608]
[1736325088001,0.11223093,95891.0,95881.0,0.3608]
[1736325088601,0.05216,95892.0,95881.0,0.3608]
[1736325091403,0.05216,95891.0,95881.0,0.3608]
[1736325092202,0.11223093,95890.0,95881.0,0.3608]
[1736325093107,0.11223093,95889.0,95881.0,0.3608]
[1736325094406,0.11223093,95888.0,95881.0,0.3608]
[1736325095311,0.05216,95891.0,95881.0,0.3608]
[1736325100614,0.11223093,95890.0,95881.0,0.3608]
[1736325101411,0.11223093,95889.0,95881.0,0.3608]
[1736325102111,0.11223093,95888.0,95881.0,0.3608]
[1736325102713,0.11223093,95887.0,95881.0,0.3608]
[1736325103614,0.11223093,95886.0,95881.0,0.3608]
[1736325103818,0.11223093,95886.0,95884.0,0.052164]
[1736325104213,0.126757,95898.0,95885.0,0.0737]
[1736325104811,0.126757,95898.0,95885.0,0.125863]
[1736325105422,0.1122279,95897.0,95885.0,0.125863]
[1736325105619,0.1643849,95897.0,95885.0,0.125863]
[1736325106419,0.1122279,95896.0,95885.0,0.125863]
[1736325107119,0.1122279,95896.0,95888.0,0.052162]
[1736325107418,0.1122279,95895.0,95886.0,0.10449579]
[1736325108218,0.1122279,95895.0,95885.0,0.08434543]
[1736325108420,0.1122279,95895.0,95888.0,0.052162]
[1736325108815,0.1122279,95894.0,95888.0,0.052162]
[1736325109518,0.1122279,95894.0,95888.0,0.412962]
[1736325109718,0.1122279,95893.0,95888.0,0.412962]
[1736325110618,0.1122279,95892.0,95888.0,0.412962]
[1736325110821,0.1122279,95892.0,95888.0,0.3608]
[1736325111121,0.1122279,95892.0,95889.0,0.052161]
[1736325111323,0.1122279,95891.0,95889.0,0.052161]
[1736325111513,0.1122279,95891.0,95890.0,0.0731]
[1736325112113,0.1122279,95899.0,95890.0,0.0731]
[1736325112717,0.47882452,95900.0,95890.0,0.0731]
[1736325112921,0.47826451,95900.0,95892.0,0.052159]
[1736325116221,0.47826451,95900.0,95892.0,0.412959]
[1736325116814,0.1122279,95899.0,95893.0,0.052159]
[1736325117621,0.1122279,95898.0,95893.0,0.052159]
[1736325118419,0.1122279,95897.0,95893.0,0.052159]
[1736325119214,0.1122279,95897.0,95892.0,0.3608]
[1736325119526,0.03880163,95896.0,95895.0,0.052158]
[1736325119823,0.03880163,95896.0,95895.0,0.412958]
[1736325121022,0.45848615,95900.0,95899.0,0.052156]
[1736325121223,0.30934614,95900.0,95899.0,0.052156]
[1736325121425,0.06958762,95900.0,95899.0,0.052156]
[1736325121627,0.06277762,95900.0,95899.0,0.052156]
[1736325121825,0.06277762,95900.0,95899.0,0.28096882]
[1736325122924,0.05477762,95900.0,95899.0,0.28096882]
[1736325123118,0.1,95920.0,95900.0,0.3644]
[1736325123313,0.1,95920.0,95919.0,0.052145]
[1736325123725,0.1,95920.0,95919.0,0.122445]
[1736325124425,0.1,95920.0,95919.0,0.198645]
[1736325126129,0.0715,95939.0,95938.0,0.052135]
[1736325126329,0.0715,95939.0,95938.0,0.412935]
[1736325127027,0.1,95940.0,95938.0,0.412935]
[1736325127028,0.1,95940.0,95938.0,0.773735]
[1736325127425,0.1,95940.0,95939.0,0.0724]
[1736325127622,0.02962595,95940.0,95939.0,0.0724]
[1736325127928,0.027031,95940.0,95939.0,0.3724]
[1736325128130,0.027031,95940.0,95939.0,0.44778465]
[1736325128431,0.027031,95940.0,95939.0,0.20578465]
[1736325128820,0.027031,95940.0,95939.0,0.21633131]
[1736325129023,0.26048063,95969.0,95959.0,0.052123]
[1736325129322,0.1483,95969.0,95959.0,0.412923]
[1736325129517,0.071,95968.0,95959.0,0.412923]
[1736325131723,0.071,95968.0,95959.0,0.42358453]
[1736325140136,0.074892,95960.0,95959.0,0.42358453]
[1736325140535,0.01127201,95960.0,95959.0,0.42358453]
[1736325140835,0.0737,95979.0,95976.0,0.052114]
[1736325141628,0.0737,95979.0,95975.0,0.3608]
[1736325141832,0.0737,95979.0,95963.0,0.46836]
[1736325142026,0.052114,95977.0,95963.0,0.46724]
[1736325142430,0.052114,95977.0,95963.0,0.519361]
[1736325142831,0.0737,95979.0,95967.0,0.10449579]
[1736325143038,0.0737,95979.0,95967.0,0.052119]
[1736325143741,0.0737,95979.0,95969.0,0.46529579]
[1736325143941,0.0737,95979.0,95969.0,0.56979158]
[1736325144140,0.0737,95979.0,95978.0,0.412913]
[1736325146940,0.0737,95979.0,95978.0,0.42322857]
[1736325158151,0.1,95980.0,95978.0,0.42322857]
[1736325158653,0.00127597,95980.0,95978.0,0.42322857]
[1736325159954,0.0715,95992.0,95990.0,0.052106]
[1736325160152,0.0715,95992.0,95991.0,0.3608]
[1736325161253,0.0689,95998.0,95991.0,0.3608]
[1736325161653,0.0689,95998.0,95991.0,0.412906]
[1736325161855,0.0689,95998.0,95994.0,0.052104]
[1736325162047,0.0689,95998.0,95995.0,0.052104]
[1736325162352,0.0689,95998.0,95996.0,0.052103]
[1736325166962,0.63884365,96000.0,95999.0,0.052102]
[1736325167258,0.41642055,96000.0,95999.0,0.879982]
[1736325168252,0.38806055,96000.0,95999.0,0.879982]
[1736325172360,0.38106055,96000.0,95999.0,0.879982]
[1736325173062,0.37547055,96000.0,95999.0,0.879982]
[1736325173273,0.37247055,96000.0,95999.0,0.879982]
[1736325174264,0.35465055,96000.0,95999.0,0.879982]
[1736325175565,0.35465055,96000.0,95999.0,0.82788]
[1736325175867,0.35465055,96000.0,95991.0,0.3713517]
[1736325176165,0.1331,95999.0,95991.0,0.4234577]
[1736325176371,0.1331,95999.0,95996.0,0.052103]
[1736325176551,0.0666,95999.0,95996.0,0.052103]
[1736325178463,0.35465055,96000.0,95991.0,0.3713517]
[1736325178670,0.35465055,96000.0,95999.0,0.412902]
[1736325180067,0.35465055,96000.0,95999.0,0.3608]
[1736325180271,0.35465055,96000.0,95991.0,0.3713517]
[1736325182161,0.35465055,96000.0,95991.0,0.0105517]
[1736325182358,0.3608,95995.0,95979.0,0.3608]
[1736325182563,0.10449579,95990.0,95979.0,0.37123198]
[1736325183475,0.15660279,95990.0,95979.0,0.37123198]
[1736325183970,0.10449579,95990.0,95979.0,0.37123198]
[1736325184169,0.05211,95984.0,95979.0,0.37123198]
[1736325184573,0.10449579,95990.0,95979.0,0.37123198]
[1736325184777,0.16421589,95983.0,95979.0,0.37123198]
[1736325185572,0.11210489,95982.0,95979.0,0.37123198]
[1736325185976,0.11210489,95982.0,95971.0,0.3608]
[1736325186172,0.3608,95975.0,95970.0,0.00156294]
[1736325186474,0.1299,95974.0,95970.0,0.01186135]
[1736325186776,0.1299,95974.0,95970.0,0.00156294]
[1736325189178,0.0683,95973.0,95970.0,0.00156294]
[1736325192871,0.0644,95974.0,95970.0,0.05367994]
[1736325193072,0.10449579,95990.0,95970.0,0.00156294]
[1736325193267,0.10449579,95990.0,95977.0,0.3608]
[1736325193484,0.10449579,95990.0,95970.0,0.00156294]
[1736325193781,0.10449579,95980.0,95973.0,0.052115]
[1736325194173,0.10449579,95980.0,95977.0,0.3608]
[1736325194373,0.10449579,95980.0,95973.0,0.052115]
[1736325194575,0.10449579,95980.0,95976.0,0.3608]
[1736325195267,0.10449579,95980.0,95976.0,0.412914]
[1736325195472,0.10449579,95990.0,95976.0,0.412914]
[1736325195875,0.10449579,95990.0,95977.0,0.052113]
[1736325196274,0.10449579,95990.0,95976.0,0.3608]
[1736325196474,0.10449579,95990.0,95983.0,0.05211]
[1736325199276,0.10449579,95990.0,95983.0,0.06269573]
[1736325199478,0.10449579,95990.0,95983.0,0.01058573]
[1736325199675,0.052107,95989.0,95976.0,0.3608]
[1736325199986,0.052107,95989.0,95979.0,0.052112]
[1736325200381,0.10449579,95990.0,95979.0,0.052112]
[1736325200591,0.052108,95988.0,95979.0,0.052112]
[1736325201979,0.052108,95988.0,95979.0,0.06259119]
[1736325202181,0.3608,95986.0,95979.0,0.06259119]
[1736325203790,0.3608,95986.0,95979.0,0.01047919]
[1736325203990,0.3608,95986.0,95972.0,0.052116]
[1736325204490,0.3608,95986.0,95973.0,0.052115]
[1736325206790,0.052112,95981.0,95970.0,0.01182061]
[1736325207094,0.10449579,95980.0,95970.0,0.01182061]
[1736325207287,0.114813,95979.0,95970.0,0.01182061]
[1736325208288,0.11212336,95978.0,95970.0,0.01182061]
[1736325208694,0.11212336,95978.0,95975.0,0.3608]
[1736325208881,0.11212336,95978.0,95976.0,0.1244]
[1736325209589,0.41346901,95986.0,95976.0,0.1244]
[1736325209788,0.412909,95986.0,95976.0,0.1244]
[1736325209988,0.412909,95986.0,95975.0,0.3608]
[1736325210893,0.11212336,95985.0,95975.0,0.3608]
[1736325211695,0.11212336,95984.0,95975.0,0.3608]
[1736325212597,0.11212336,95985.0,95975.0,0.3608]
[1736325213603,0.05270901,95986.0,95984.0,0.3608]
[1736325213897,0.052109,95986.0,95984.0,0.3608]
[1736325214587,0.052109,95986.0,95975.0,0.3608]
[1736325214989,0.052109,95986.0,95975.0,0.412914]
[1736325216000,0.061,95988.0,95978.0,0.052113]
[1736325216296,0.0619,95989.0,95978.0,0.052113]
[1736325216690,0.0619,95989.0,95975.0,0.3608]
[1736325216691,0.11211684,95988.0,95975.0,0.3608]
[1736325216891,0.11211684,95988.0,95979.0,0.052112]
[1736325217402,0.11211684,95988.0,95987.0,0.3608]
[1736325217600,0.052105,95993.0,95987.0,0.3608]
[1736325217900,0.0649,95999.0,95987.0,0.3608]
[1736325218086,0.0649,95999.0,95991.0,0.052106]
[1736325218290,0.35465055,96000.0,95987.0,0.3608]